Cogmind - Beta 16 @@@ ROGUE MODE // 2025.11.30 @ 18:08:55 Player: Akamichi1342 Result: Destroyed by D-53 Grenadier with Mini Grenade Launcher Performance ------------- Evolutions (0) 0 Regions Visited (4) 800 Robots Destroyed (28) 140 Value Destroyed (577) 577 Prototype IDs (0) 0 Alien Tech Used (0) 0 Bonus (0) 0 TOTAL SCORE: 1517 Bonus ------- None Cogmind --------- Core Integrity 0/250 Matter 295/300 Energy 99/100 System Corruption 2% Temperature Cool (0) Movement Core (100) Ox1 Location -9/Mines Parts ------- > --- POWER (1) -------- (None) > --- PROPULSION (2) --- (None) > --- UTILITY (2) ------ Small Storage Unit > --- WEAPON (2) ------- (None) > --- INVENTORY (8) ---- Light Nuclear Core Light Treads Transport Network Coupler Hacking Suite Particle Gun Grenade Launcher Peak State ------------ > --- POWER ------------ Light Nuclear Core > --- PROPULSION ------- Light Treads Light Treads > --- UTILITY ---------- Small Storage Unit Propulsion Shielding > --- WEAPON ----------- Particle Gun Assault Rifle > --- INVENTORY -------- Ion Engine Grenade Launcher [Rating: 10] Favorites ----------- Power Ion Engine Engine Ion Engine Power Core Light Nuclear Core Propulsion Light Treads Treads Light Treads Utility Small Storage Unit Storage Small Storage Unit Protection Propulsion Shielding Weapon Particle Gun Energy Gun Particle Gun Ballistic Gun Assault Rifle Launcher Grenade Launcher Build | -11 -10 -10 -10 -9 ------- Run | Yrd Mat Min Exi Min Slots Evolved . | . . . . . Power . | . . . . . Propulsion . | . . . . . Utility . | . . . . . Weapon . | . . . . . Parts Attached 11 | 6 4 1 . . Power 2 | 1 1 . . . Engine 1 | 1 . . . . Core 1 | . 1 . . . Reactor . | . . . . . Propulsion 3 | 2 1 . . . Treads 3 | 2 1 . . . Leg . | . . . . . Wheel . | . . . . . Hover . | . . . . . Flight . | . . . . . Utility 2 | 1 1 . . . Device . | . . . . . Storage 1 | 1 . . . . Processor . | . . . . . Hackware . | . . . . . Protection 1 | . 1 . . . Artifact . | . . . . . Weapon 4 | 2 1 1 . . Energy Gun 1 | . 1 . . . Energy Cannon . | . . . . . Ballistic Gun 2 | 2 . . . . Ballistic Cannon . | . . . . . Launcher 1 | . . 1 . . Special Weapon . | . . . . . Impact Weapon . | . . . . . Slashing Weapon . | . . . . . Piercing Weapon . | . . . . . Special Melee Weapon . | . . . . . Unidentified Prototypes . | . . . . . Parts Lost 6 | . . 3 . 3 Power 2 | . . 1 . 1 Propulsion 2 | . . . . 2 Utility 1 | . . 1 . . Weapon 1 | . . 1 . . Highest Loss Streak 3 | . . 2 . 3 To Critical Strikes . | . . . . . Average Backups 3 | . 2 4 6 6 Power . | . . . 1 1 Propulsion . | . . 1 1 1 Utility 1 | . . 2 2 2 Weapon 1 | . . . 2 2 Tool/Special . | . . . . . Unused Backups 4 | . 1 . . 3 Power 1 | . . . . 1 Propulsion 1 | . 1 . . . Utility 2 | . . . . 2 Weapon . | . . . . . Tool/Special . | . . . . . Average Slot Usage (%) 79 | . 88 86 57 55 Engine 8 | . 1 10 14 14 Core 5 | . 12 3 . . Treads 27 | . 27 28 28 26 Storage 14 | . 14 14 14 14 Protection 3 | . 3 5 . . Energy Gun 9 | . 12 14 . . Ballistic Gun 7 | . 15 5 . . Launcher 1 | . . 3 . . Peak Build Rating 10 | 6 10 10 5 5 Average Rating 7 | 5 8 7 5 4 On Entrance 5 | . 6 10 6 5 Avg Prop Armor Cover (%) . | . . . . . Naked Turns . | . . . . . Heaviest Build 16 | 13 16 16 10 10 Greatest Support 40 | 40 40 40 40 40 Greatest Overweight (x) 5 | 2 5 . . 3 Average Overweight (x) . | . . . . . Largest Inventory Capacity 8 | 8 8 8 8 8 Average Capacity 7 | 6 8 8 8 8 Most Carried 6 | . 5 5 6 6 Average Carried 3 | . 2 4 6 6 Final Capacity 8 | 8 8 8 8 8 Final Carried 6 | . 5 5 6 6 Class Distribution -------------------- 100% | Mutant Dominant Class ---------------- Mutant | -10/Materials Mutant | -10/Mines Mutant | -10/Exiles Mutant | -9/Mines Resources | -11 -10 -10 -10 -9 ----------- Run | Yrd Mat Min Exi Min Matter Collected 494 | 200 199 95 . . Remotely . | . . . . . Salvage Created 711 | . 424 287 . . Parts 57 | . 32 25 . . Haulers Intercepted 1 | . 1 . . . Recyclers Shooed . | . . . . . Parts Field Recycled . | . . . . . Retrieved Matter . | . . . . . Parts Self-Destructed . | . . . . . Prevented . | . . . . . Parts Restored . | . . . . . Kills | -11 -10 -10 -10 -9 ------- Run | Yrd Mat Min Exi Min Combat Hostiles Destroyed 21 | . 9 12 . . Guns 20 | . 9 11 . . AOE 1 | . . 1 . . Classes Destroyed 7 | . 6 1 . . Builder 1 | . 1 . . . Tunneler 1 | . . 1 . . Hauler 1 | . 1 . . . Operator 2 | . 2 . . . Watcher 2 | . 2 . . . Swarmer 11 | . 3 8 . . Grunt 10 | . 6 4 . . Best Kill Streak 3 | . 3 3 . . Combat Bots Only 3 | . 3 3 . . Max Kills in Single Turn 2 | . 1 2 . . Gunslinging 1 | . . 1 . . Exploded 1 | . . 1 . . Melee . | . . . . . Uniques/NPCs Destroyed . | . . . . . Combat | -11 -10 -10 -10 -9 -------- Run | Yrd Mat Min Exi Min Hostile Shots Fired 103 | . 29 67 . 7 Missed 24 | . 6 18 . . Hits 79 | . 23 49 . 7 Projectile 79 | . 23 49 . 7 AOE 7 | . . . . 7 Damage Taken 965 | . 268 447 . 250 Core 274 | . 21 102 . 151 Absorbed by Shields . | . . . . . Redirected to Shielding 53 | . . 53 . . Core Remaining (%) 100 | 100 . . . . Volleys Fired 59 | . 29 30 . . Largest 2 | . 2 2 . . Hottest 85 | . 85 85 . . Shots Fired 105 | . 57 48 . . Gun 101 | . 57 44 . . Cannon . | . . . . . Launcher 4 | . . 4 . . Special . | . . . . . Kinetic 52 | . 34 18 . . Thermal 49 | . 23 26 . . Explosive 4 | . . 4 . . Electromagnetic . | . . . . . Robot Hit Streak 12 | . 7 12 . . Robot Miss Streak 3 | . 3 3 . . Penetration Max . | . . . . . Secondary Targets 2 | . . 2 . . Max Gunslinging Chain 1 | . . 1 . . Shots Hit Robots 60 | . 30 30 . . Core Hits 35 | . 19 16 . . Critical Kills . | . . . . . Critical Parts Destroyed . | . . . . . Critical Strikes 1 | . . 1 . . Burn 1 | . . 1 . . Melee Attacks . | . . . . . Impact . | . . . . . Slashing . | . . . . . Piercing . | . . . . . Sneak Attacks . | . . . . . Combat Hostiles . | . . . . . Follow-up Attacks . | . . . . . Damage Inflicted 989 | . 431 558 . . Guns 866 | . 431 435 . . Cannons . | . . . . . Explosions 120 | . . 120 . . Melee . | . . . . . Ramming 3 | . . 3 . . Kinetic 283 | . 164 119 . . Thermal 583 | . 267 316 . . Explosive 120 | . . 120 . . Electromagnetic . | . . . . . Impact . | . . . . . Slashing . | . . . . . Piercing . | . . . . . Highest Corruption 2 | . 2 2 2 2 Average Corruption 2 | . 2 2 2 2 Corruption Purged . | . . . . . Corruption Blocked . | . . . . . Effects 13 | . . 9 2 2 Message Errors 3 | . . 3 . . Matter Fused 2 | . . 1 1 . Heat Flow Errors 1 | . . 1 . . Energy Discharges 2 | . . 1 1 . Parts Fused 1 | . . . . 1 Data Loss (minor) 1 | . . . . 1 Misfires 2 | . . 2 . . Alerts 1 | . . 1 . . Overload Shots . | . . . . . Overflow Damage . | . . . . . Projectiles . | . . . . . Explosions . | . . . . . Melee . | . . . . . Knockbacks . | . . . . . Impact . | . . . . . Kinetic . | . . . . . Secondary . | . . . . . Self-Inflicted Damage . | . . . . . Shots . | . . . . . Rammed 1 | . . 1 . . Targets Rammed 1 | . . 1 . . Kicked . | . . . . . Crushed . | . . . . . Highest Temperature 270 | . 144 270 . . Average Temperature 79 | . 44 111 . . Received Heat Transfer 195 | . 126 69 . . Siege Activations . | . . . . . Martial Activations . | . . . . . Shielding Activations . | . . . . . Robots Disrupted . | . . . . . Combat Hostiles . | . . . . . Robots Corrupted . | . . . . . Combat Hostiles . | . . . . . Parts Fried . | . . . . . Impact Corruptions . | . . . . . Robots Melted . | . . . . . Combat Hostiles . | . . . . . Parts Melted 2 | . 1 1 . . Heat Transferred 1406 | . 629 777 . . Parts Sabotaged . | . . . . . Parts Stolen . | . . . . . Parts Stripped . | . . . . . Power Chain Reactions . | . . . . . Alert | -11 -10 -10 -10 -9 ------- Run | Yrd Mat Min Exi Min Maximum Alert Level . | . . . . . Low Security (%) 100 | 100 100 100 . 100 Level 1 . | . . . . . Level 2 . | . . . . . Level 3 . | . . . . . Level 4 . | . . . . . Level 5 . | . . . . . High Security . | . . . . . Max Security . | . . . . . Peak Influence 125 | . 96 125 . . Initial 5 | . . 5 . . Average 33 | . 33 45 . . Influence Increases 630 | . 288 342 . . Destroy 0b10 Robot/C 420 | . 180 240 . . Destroy 0b10 Robot/NC 35 | . 30 5 . . Destroy Leader 86 | . 46 40 . . Disable Machine 15 | . 15 . . . Destroy Structure 29 | . 2 27 . . Lose Combat Pursuer 45 | . 15 30 . . Influence Decreases 630 | . 274 356 . . Entered New Map 9 | . . 9 . . Time Decay 591 | . 274 317 . . Lost Part 30 | . . 30 . . Squads Dispatched 3 | . 3 . . . Investigation 1 | . 1 . . . Extermination . | . . . . . Reinforcement 2 | . 2 . . . Assault . | . . . . . Garrison . | . . . . . Intercept . | . . . . . Searches Triggered . | . . . . . Construction Impeded . | . . . . . Haulers Reinforced . | . . . . . Active Scanning Responses . | . . . . . Cargo Convoy Interrupts . | . . . . . Stealth | -11 -10 -10 -10 -9 --------- Run | Yrd Mat Min Exi Min Distress Signals 3 | . 3 . . . Communications Jammed . | . . . . . Distress Signals . | . . . . . Times Spotted 31 | . 17 11 . 3 Peak Tracking Total 3 | . 3 3 . 2 Tactical Retreats 3 | . 1 2 . . Traps | -11 -10 -10 -10 -9 ------- Run | Yrd Mat Min Exi Min Traps Triggered 3 | . 3 . . . Indirectly . | . . . . . Trap Hack Attempts . | . . . . . Triggered . | . . . . . Disarmed . | . . . . . Reprogrammed . | . . . . . Reused . | . . . . . Traps Extracted . | . . . . . Installed . | . . . . . Triggered . | . . . . . Machines | -11 -10 -10 -10 -9 ---------- Run | Yrd Mat Min Exi Min Machines Disabled 1 | . 1 . . . Max in Single Turn 1 | . 1 . . . Machines Repaired . | . . . . . Machines Dismantled . | . . . . . Machines Sabotaged . | . . . . . Overloaded Fab Kills . | . . . . . Hacking | -11 -10 -10 -10 -9 --------- Run | Yrd Mat Min Exi Min Machines Accessed 2 | . 2 . . . Terminals 2 | . 2 . . . Fabricators . | . . . . . Repair Stations . | . . . . . Recycling Units . | . . . . . Scanalyzers . | . . . . . Garrison Access . | . . . . . Total Hacks 7 | . 7 . . . Successful 3 | . 3 . . . Failed 4 | . 4 . . . Catastrophic . | . . . . . Database Lockouts . | . . . . . Manual 7 | . 7 . . . Terminals 7 | . 7 . . . Fabricators . | . . . . . Repair Stations . | . . . . . Recycling Units . | . . . . . Scanalyzers . | . . . . . Garrison Access . | . . . . . Terminal Hacks 1 | . 1 . . . Robot Analysis 1 | . 1 . . . Fabricator Hacks . | . . . . . Repair Station Hacks . | . . . . . Recycling Unit Hacks . | . . . . . Scanalyzer . | . . . . . Garrison Access Hacks . | . . . . . Unauthorized Hacks 2 | . 2 . . . Terminals 2 | . 2 . . . Botnet 1 | . 1 . . . Operators 1 | . 1 . . . Fabricators . | . . . . . Repair Stations . | . . . . . Recycling Units . | . . . . . Scanalyzers . | . . . . . Garrison Access . | . . . . . Data Cores Recovered . | . . . . . Used . | . . . . . Hacking Detections 2 | . 2 . . . Full Trace Events . | . . . . . Feedback Events . | . . . . . Feedback Blocked . | . . . . . Robot Schematics Acquired . | . . . . . Robots Built . | . . . . . Authchips . | . . . . . Time . | . . . . . Total Robot Build Rating . | . . . . . Part Schematics Acquired . | . . . . . Parts Built . | . . . . . Authchips . | . . . . . Time . | . . . . . Total Part Build Rating . | . . . . . Part Studies Acquired . | . . . . . Parts Repaired . | . . . . . Time . | . . . . . Parts Recycled . | . . . . . Recycled Matter . | . . . . . Retrieved Matter . | . . . . . Retrieved Components . | . . . . . Parts Scanalyzed . | . . . . . Part Schematics Acquired . | . . . . . Parts Damaged . | . . . . . Bothacking | -11 -10 -10 -10 -9 ------------ Run | Yrd Mat Min Exi Min Used RIF Installer . | . . . . . Robots Hacked . | . . . . . Non-combat . | . . . . . Combat . | . . . . . Robot Hacks Applied . | . . . . . Relay Couplers Released . | . . . . . Fabnet Peak Effective % . | . . . . . Robots Rewired . | . . . . . Allies Hacked . | . . . . . Hacks Repelled . | . . . . . Allies | -11 -10 -10 -10 -9 -------- Run | Yrd Mat Min Exi Min Total Allies . | . . . . . Largest Group . | . . . . . Highest-Rated Group . | . . . . . Highest-Rated Ally . | . . . . . Total Orders . | . . . . . Ally Attacks . | . . . . . Total Damage . | . . . . . Kills . | . . . . . Allies Corrupted . | . . . . . Allies Melted . | . . . . . Intel | -11 -10 -10 -10 -9 ------- Run | Yrd Mat Min Exi Min Active Infowar (turns) . | . . . . . Robot Analysis Total 1 | . 1 . . . Derelict Logs Recovered 4 | . . 1 . 3 Drone Launches . | . . . . . Drone Recoveries . | . . . . . Exploration | -11 -10 -10 -10 -9 ------------- Run | Yrd Mat Min Exi Min Turns Passed 2273 | 86 740 877 352 218 Spaces Moved 1250 | 55 372 468 219 136 Core 16 | 11 1 . . 4 Treads 1234 | 44 371 468 219 132 Legs . | . . . . . Wheels . | . . . . . Hover . | . . . . . Flight . | . . . . . Fastest Speed 50 | 50 160 160 160 100 Average Speed 159 | 142 160 160 160 160 Slowest Speed 300 | 160 300 160 160 200 Overloaded Moves . | . . . . . Propulsion Burnouts . | . . . . . Robots Hopped . | . . . . . Potential Cave-ins . | . . . . . Cave-ins Triggered . | . . . . . Exploration Rate (%) 51 | 5 56 94 61 40 Regions Visited 4 Branch Regions 3 Pre-discovered Areas . | . . . . . Known Exits Taken . | . . . . . Unknown Exits Taken 4 | 1 1 1 1 . Scrap Searched 1 | . . 1 . . Spaces Dug . | . . . . . Terrain Destroyed 32 | . . 32 . . Melee . | . . . . . Projectile . | . . . . . AOE 32 | . . 32 . . Terrain Rammed . | . . . . . Walls Destroyed . | . . . . . Machines Disabled . | . . . . . Actions | -11 -10 -10 -10 -9 --------- Run | Yrd Mat Min Exi Min Total 1425 | 60 458 550 221 136 Wait 96 | . 46 48 2 . Move 1246 | 54 371 467 218 136 Hop . | . . . . . Pick Up 6 | . 5 1 . . Fast Attach 10 | 6 4 . . . Attach 2 | . . 2 . . Detach 2 | . . 1 1 . Swap 1 | . 1 . . . Drop 2 | . 2 . . . Fire 59 | . 29 30 . . Melee . | . . . . . Ram . | . . . . . Kick . | . . . . . Crush 1 | . . 1 . . Escape Stasis . | . . . . . Rewire . | . . . . . Trap . | . . . . . Miscellaneous . | . . . . . Route ------- -11/Scrapyard -10/Materials (discovered 4 exits: [*Mat x2] / [*Min] / [*Sub]) -10/Mines (discovered 3 exits: [*Mat] / [*Exi] / [*Sub]) -10/Exiles -9/Mines (discovered 1 exit: Mat) History --------- Turn | Location | Event 2 | -11/Scrapyard | Met Revision 17 46 | -11/Scrapyard | Discovered new exit (range 14) 87 | -11/Scrapyard | Entered Materials 329 | -10/Materials | Build established: Mutant 359 | -10/Materials | Discovered new exit (range 7) 474 | -10/Materials | Discovered new exit (range 11) 645 | -10/Materials | Discovered new exit (range 13) 773 | -10/Materials | Discovered new exit (range 4) 827 | -10/Materials | Entered Mines 958 | -10/Mines | YI-UF0 nonchalantly dropped a Grenade Launcher on the ground 1284 | -10/Mines | Learned Materials stockpile data 1351 | -10/Mines | Discovered new exit (range 15) 1475 | -10/Mines | Discovered new exit (range 13) 1597 | -10/Mines | Found a hidden stash of uninstalled traps 1697 | -10/Mines | Deemed a non-threat by the Exiles lab entrance 1697 | -10/Mines | Discovered new exit (range 5) 1704 | -10/Mines | Entered Exiles 1704 | -10/Exiles | Found Exiles lab abandoned 2041 | -10/Exiles | Discovered new exit (range 10) 2056 | -10/Exiles | Entered Mines 2194 | -9/Mines | Identified exit to Materials 2197 | -9/Mines | Learned Materials machine intel 2229 | -9/Mines | Assembled infested the area 2234 | -9/Mines | Assisted by a Guerilla fighting off Assembled 2268 | -9/Mines | Core integrity fell below 50% 2271 | -9/Mines | Core integrity fell below 20% 2274 | -9/Mines | Destroyed by D-53 Grenadier with Mini Grenade Launcher Last Messages --------------- 02208_ Acquired derelict log, extracted data. Data stored: Storage entrances (x1). 02215_ K-01 Serf collects debris. 02229_ ALERT: Infestation in the mines, dispatching Demolisher response squad. 02234_ A derelict emerges from the shadows: "You need to get out of here! I've been tracking a group of Assembled to figure out where they're coming from, and they're closing on this area, come on!" 02235_ K-01 Serf collects debris. 02265_ T-07 Excavator is excavating. 02267_ C-45 Heavy ARC bursts open, deploying its payload. 02267_ D-53 Grenadier unfolds itself. 02267_ Lgt. Treads destroyed. 02269_ T-07 Excavator is excavating. 02270_ T-07 Excavator destroyed. 02272_ The unstable cave ceiling collapses. 02273_ Ion Engine destroyed. Map ----- +----------------------------------------------------+ | ??????????????# ???????????????????? | | ??????????????? ??????????????????? | | ??????????????? ??????????????????? | | ???????????????? ?????????????????? | | ????????????????? ?????????????????? | | ?????????????????# ????????????????? | | ?????????????????? ##?????????????## | | ??????????????????? ????????????## | | ???????????????????# ###???####### | | ???????????????????# #???# | | ???????????????????? #???# | | ?????????????????????# #???# | | ?????????????????????# ##### | | ?????????????????????# | | ?????????????????????# #^ | | ?????????????????????# # # | | ????????????????????## ^# # # | | ????????????######### ^## # ## # | | ???????????## #% ### # | | ??????????## # d ^####?# ## | | ?????????## d ##???# #? | | ?????????# ##???? #? | | ?????????# ## #????# #? | | ?????????## ### #????# ##? | | ????????## #?? #????# ?? | | ????????# @ #????# ?? | | ????????## *%= ### #????# ##? | | ?????????# !## ## #?? #????## ##?? | | ?????????## ##?### #? #?????###???? | | ??????????##?????## ????????????? | | ??????????????????## ???????????? | | ????????????????????# ??????????? | | ?????????????????????# ?????????? | | ??????????????????????# ??????????? | | ???????????????????????? ??????????? | | ????????????????????????????????????? | | ????????????????????????????????????? | | ????????????????????????????????????? | | | | | | | | | | | | | | | | | | | | | | | | | +----------------------------------------------------+ Best States ------------- Heat Dissipation 25 Energy Generation 14 Energy Capacity 250 Matter Stores 300 Matter Capacity 300 Sight Range 16 Terrain Scan Density 10 Propulsion Shielding 33 Evasion (%) 40 Recoil Reduction 2 Item Schematics ----------------- None Robot Schematics ------------------ None Fabricated ------------ Nothing Repaired ---------- Nothing Studied --------- None Alien Tech Used ----------------- None Achievements -------------- None Challenges ------------ None Game ------ Seed SupersonicOmegaCarapace Manual? 0 Play Time 00:08:43 Cumulative 32.8 hours Start 2025.11.30 @ 18:01:05 End 2025.11.30 @ 18:08:55 Sessions 1 Manual Loads 0 Difficulty Rogue Special Mode None Game No. 40 Rogue 40 Adventurer 0 Explorer 0 Win Type - Total 1 Types 1/0/0/0/0/0/0/0/0/0 Lore% 30 Gallery% 29 Achievement% 29 Wizard Run 0 Options --------- Layout 1 ASCII 0 Keyboard 0 Movement Numpad Keybinds 0 Fullscreen 1 Font 24/Smallcaps Map View 50x35 Zoom Use 0% Tactical HUD 1 Map Filters NONE Filters NONE Steam 0 RUN: e7755ee5-85b8-4959-b4d0-1343b03a679f